[Event "Polish Ekstraliga 2024"]
[Site "Walbrzych"]
[Date "2024.10.07"]
[Round "1.16"]
[White "Krzyzanowski, Marcin"]
[Black "Luch, Michal"]
[Result "1-0"]
[ECO "B48"]
[WhiteElo "2509"]
[BlackElo "2332"]
[Annotator "TA"]
[PlyCount "101"]
[EventDate "2024.10.05"]
[EventType "team-tourn"]
[EventCountry "POL"]
[SourceTitle "playchess.com"]
[Source "ChessBase"]
[SourceQuality "1"]
[WhiteTeam "Raciborz"]
[BlackTeam "Wisznia Mala"]
[TimeControl "40/5400+30:1800+30"]

{[%evp 25,101,0,20,39,26,25,34,28,41,54,67,59,48,-6,12,6,18,15,40,40,57,38,53,47,58,41,47,32,63,0,0,0,5,0,82,73,111,116,148,154,151,132,138,110,111,96,159,148,116,13,28,27,52,54,42,71,211,211,534,543,735,708,1299,1006,4829,2014,9167,7084,10472,4550,5202,2441,2336,1180,12629,10357,5118,5089]} 1. e4 {[%emt 0:00:03]} c5 {[%emt 0:00:03]} 2. Nf3 {[%emt 0:00:05]} e6 {[%emt 0:00:05]} 3. d4 {[%emt 0:00:04]} cxd4 {[%emt 0:00:04]} 4. Nxd4 {[%emt 0:00:05]} Nc6 {[%emt 0:00:03]} 5. Nc3 {[%emt 0:00:06]} Qc7 {[%emt 0:00:03]} 6. Be3 {[%emt 0:00:06]} a6 {[%emt 0:00:06]} 7. g4 {[%emt 0:00:04] B48: Sicilian: Taimanov: 5 Nc3 Qc7 6 Be3 a6 without Be2.} b5 {[%emt 0:00:15]} 8. Nxc6 {[%emt 0:00:06]} Qxc6 {[%emt 0:00:09]} 9. Qd2 {[%emt 0:00:06]} b4 {[%emt 0:00:52]} 10. Ne2 {[%emt 0:00:05]} Qxe4 {[%emt 0:00:18]} 11. Rg1 {[%emt 0:00:05]} Qc6 {[%emt 0:00:10]} 12. Bg2 {[%emt 0:00:21]} d5 {[%emt 0:00:03]} 13. O-O-O {[%emt 0:00:25]} Bb7 {[%emt 0:03:30]} 14. f4 {[%emt 0:00:29]} Nf6 {[%emt 0:18:12]} 15. f5 {[%emt 0:00:37]} exf5 {[%emt 0:11:35]} (15... Nxg4 16. Nd4 Qb6 17. fxe6 fxe6 18. Bf4) 16. Nd4 {[%emt 0:00:57]} Qc4 {[%emt 0:02:14]} 17. b3 {[%emt 0:00:35]} (17. gxf5 Qxa2 18. Nb3 Rc8 $17) 17... Qc3 {[%emt 0:00:12]} 18. Qxc3 {[%emt 0:00:03]} bxc3 {[%emt 0:00:04]} 19. gxf5 $146 {[%emt 0:01:40]} ({White should try} 19. Nxf5 $14 Nxg4 20. Bd4 (20. Bxd5 Bxd5 21. Rxd5 Ba3+ 22. Kb1 Nxe3 $17)) ({Predecessor:} 19. Nxf5 O-O-O 20. Rd3 Nxg4 21. Bf4 Kd7 22. Rxc3 Rc8 23. Rd3 g6 24. Bxd5 Nf2 25. Rd2 Bxd5 {1-0 Pasti,A (2354)-Dotzer,L (2377) Skalica op-A 2023 (4)}) 19... Bb4 {[%emt 0:23:00]} 20. Ne2 {[%emt 0:03:37]} Rc8 {[%emt 0:32:29]} 21. Bf3 {[%emt 0:04:16]} Ba3+ {[%emt 0:03:45]} 22. Kb1 {[%emt 0:00:57]} Bc5 {[%emt 0:00:01]} 23. Bxc5 $1 {[%emt 0:02:48]} Rxc5 {[%emt 0:00:01]} 24. Rxg7 {[%emt 0:02:15]} Bc8 {[%emt 0:00:24]} 25. Nd4 {[%emt 0:01:44]} Kf8 {[%emt 0:00:34]} 26. Rgg1 {[%emt 0:09:58]} Rg8 {[%emt 0:00:02]} 27. a3 {[%emt 0:08:17]} (27. Rxg8+ $14 Kxg8 28. a4) 27... Rxg1 $1 $11 {[%emt 0:00:24]} 28. Rxg1 {[%emt 0:00:02]} Rc7 {[%emt 0:04:34]} 29. Ka2 {[%emt 0:10:01]} Re7 {[%emt 0:00:36]} (29... Ke7 $11 {remains equal.}) 30. b4 $16 {[%emt 0:00:59]} Re5 {[%emt 0:01:05]} 31. a4 {[%emt 0:03:22]} h6 {[%emt 0:00:21]} 32. Kb3 {[%emt 0:08:49]} Re3 {[%emt 0:00:22]} 33. b5 {[%emt 0:07:40]} axb5 {[%emt 0:00:09]} 34. axb5 {[%emt 0:00:06]} Ke7 {[%emt 0:00:42]} 35. Kb4 {[%emt 0:07:55]} Bb7 {[%emt 0:00:03]} (35... Kd6 $142) 36. Ra1 $16 {[%emt 0:02:50]} Kd6 {[%emt 0:00:15]} 37. b6 {[%emt 0:07:20]} (37. Ra7 $16 Kc7 38. Ra3) 37... Re8 {[%emt 0:00:48]} 38. Ra3 {[%emt 0:08:56]} (38. Rd1 {simplifies} Rb8 39. Nb5+ Kc6 40. Nxc3 Kxb6 41. Nxd5+ Nxd5+ 42. Bxd5 Bxd5 43. Rxd5 Kc6+ 44. Kc4) 38... Nd7 {[%emt 0:00:46]} 39. Rxc3 {[%emt 0:00:11]} Rb8 $1 {[%emt 0:00:39]} (39... Nxb6 $2 {is the wrong capture.} 40. Nb5+ Ke7 41. Rc7+ Nd7 42. Rxb7 $18) 40. Rc7 {[%emt 0:00:00]} Ba6 {[%emt 0:00:00]} (40... Bc8 $16 41. Nb5+ Ke5) 41. Ka5 $18 {[%emt 0:17:51]} Bc4 $2 {[%emt 0:10:33]} (41... Bf1 42. Rc6+ Ke5) 42. Rc6+ $18 {[%emt 0:04:27]} Ke5 {[%emt 0:01:41]} 43. Rxc4 {[%emt 0:02:50]} dxc4 {[%emt 0:14:24]} 44. Nc6+ {[%emt 0:00:05]} Kxf5 {[%emt 0:00:02]} 45. Nxb8 {[%emt 0:00:08]} Nxb8 {[%emt 0:00:01]} 46. Bd5 {[%emt 0:01:11]} f6 {[%emt 0:02:35]} 47. Bxc4 {[%emt 0:00:07]} (47. b7 $142 Ke5 48. Bxc4) 47... Ke5 $18 {[%emt 0:00:07]} 48. Kb5 {[%emt 0:08:44]} Kd6 {[%emt 0:01:19]} 49. Bd3 {[%emt 0:01:00]} Nc6 {[%emt 0:00:18]} 50. Be4 {[%emt 0:01:25]} Nd4+ {[%emt 0:01:12]} 51. Ka6 {[%emt 0:01:14]} 1-0

[Event "Polish Ekstraliga 2024"]
[Site "Walbrzych"]
[Date "2024.10.07"]
[Round "1.17"]
[White "Skawinski, Arkadiusz"]
[Black "Jakubowski, Krzysztof"]
[Result "0-1"]
[ECO "B12"]
[WhiteElo "2333"]
[BlackElo "2443"]
[Annotator "TA"]
[PlyCount "80"]
[EventDate "2024.10.05"]
[EventType "team-tourn"]
[EventCountry "POL"]
[SourceTitle "playchess.com"]
[Source "ChessBase"]
[SourceQuality "1"]
[WhiteTeam "Wisznia Mala"]
[BlackTeam "Raciborz"]
[TimeControl "40/5400+30:1800+30"]

{[%evp 15,80,68,74,-25,-4,-23,-12,-25,-3,0,0,-6,-22,-18,10,0,0,0,0,5,24,25,26,22,22,0,99,56,64,-28,-23,-21,-22,-14,-11,-10,-12,0,-15,-106,-108,-90,-78,-93,0,-8,41,41,231,0,-75,-361,-127,-547,-557,-550,-544,-1025,-1087,-1129,-1086,-1148,-1091,-920,-843,-5318,-3412]} 1. e4 {[%emt 0:00:02]} c6 {[%emt 0:00:13]} 2. d4 {[%emt 0:00:20]} d5 {[%emt 0:00:07]} 3. f3 {[%emt 0:00:50]} e5 {[%emt 0:10:01]} 4. dxe5 {[%emt 0:05:20]} Bc5 {[%emt 0:01:26]} 5. Nc3 {[%emt 0:00:41]} Ne7 {[%emt 0:05:54]} 6. Bd3 {[%emt 0:35:52] B12: Caro-Kann: Advance Variation.} O-O {[%emt 0:21:20]} 7. f4 {[%emt 0:12:00]} Na6 {[%emt 0:06:48]} 8. Nf3 {[%emt 0:06:54]} Nb4 {[%emt 0:14:15]} 9. Be2 $146 {[%emt 0:06:07]} (9. a3 $16 Nxd3+ 10. cxd3 (10. Qxd3 Qb6 $14)) ({Predecessor:} 9. Qe2 Nxd3+ 10. cxd3 Qb6 11. h3 dxe4 12. Nxe4 Bb4+ 13. Bd2 Nd5 14. Nc3 Rd8 15. O-O-O {½-½ Walterova,E (2035)-Harvan,T (1840) Skalica op-A 2022 (2)}) 9... dxe4 $11 {[%emt 0:11:12]} 10. Nxe4 {[%emt 0:00:19]} Bf5 $1 {[%emt 0:00:20]} 11. Bd3 {[%emt 0:10:41]} Qb6 {[%emt 0:10:39]} 12. Qe2 {[%emt 0:00:49]} Rad8 {[%emt 0:02:23]} 13. a3 {[%emt 0:05:30]} Nxd3+ {[%emt 0:05:50]} 14. cxd3 {[%emt 0:00:04]} h6 {[%emt 0:02:10]} 15. Nxc5 {[%emt 0:02:56]} Qxc5 {[%emt 0:00:06]} 16. d4 {[%emt 0:00:07]} Qd5 {[%emt 0:00:37]} 17. O-O {[%emt 0:00:22]} c5 {[%emt 0:00:44]} 18. Be3 {[%emt 0:01:26]} Qb3 {[%emt 0:02:59]} 19. Rfe1 {[%emt 0:01:45]} c4 {[%emt 0:00:58]} 20. Rac1 {[%emt 0:03:52]} b5 {[%emt 0:00:59]} (20... Bd3 $11 21. Qf2 Qb5) 21. Rc3 {[%emt 0:02:44]} Qa2 {[%emt 0:00:32] [#]} 22. a4 {[%emt 0:00:37]} ({Better is} 22. Qf2 $1 $14) 22... Qxa4 $11 {[%emt 0:00:54]} 23. Ra3 {[%emt 0:00:04]} Qb4 {[%emt 0:00:23]} 24. Rxa7 {[%emt 0:00:07]} Nd5 {[%emt 0:00:44]} 25. Bc1 {[%emt 0:00:13]} Ra8 {[%emt 0:00:25]} 26. Rxa8 {[%emt 0:01:23]} Rxa8 {[%emt 0:00:05]} 27. Nh4 {[%emt 0:00:28]} (27. h3 $11) 27... Bd3 $17 {[%emt 0:00:15]} 28. Qf2 {[%emt 0:00:08]} Ra1 {[%emt 0:00:56]} 29. h3 {[%emt 0:01:29] [#]} Nxf4 {[%emt 0:01:07]} (29... c3 $1 $17 {[%cal Rc3b2] ...cxb2 is the strong threat.} 30. bxc3 Qxc3) 30. Bd2 {[%emt 0:00:59]} Qxb2 {[%emt 0:00:19]} (30... Nxh3+ $1 $11 {might be stronger.} 31. gxh3 Qxb2) 31. Qxf4 $14 {[%emt 0:00:42]} (31. Bxf4 Qxf2+ 32. Kxf2 Ra2+ 33. Ke3 g5 $11) 31... c3 $2 {[%emt 0:00:44] [#]} ({Black should try} 31... g5 $14 32. Qe3 (32. Qg4 c3 $11) 32... Rxe1+ (32... gxh4 33. e6 $16) 33. Bxe1 gxh4) 32. Rxa1 $2 {[%emt 0:01:04]} (32. Bc1 $1 $18 {Hoping for d5.} Qc2 33. e6 fxe6 34. d5) 32... Qxa1+ $17 {[%emt 0:00:24]} 33. Kh2 $2 {[%emt 0:00:10][%mdl 8192]} (33. Bc1 $17 {was the only defense.} b4 34. Kh2) 33... g5 $2 {[%emt 0:00:38]} (33... cxd2 $19 34. Qxd2 Qxd4) 34. Qf6 $2 {[%emt 0:00:28][%mdl 8192]} (34. Bxc3 $17 {nothing else works.} Qxc3 35. Qg4) 34... cxd2 $19 {[%emt 0:00:13]} 35. e6 {[%emt 0:00:24] [#]} Qa7 $1 {[%emt 0:00:35]} (35... d1=R 36. Qxf7+ Kh8 37. Qe8+ Kh7 38. Qd7+ Kh8 39. Qe8+ Kh7 40. Qd7+ Kh8 41. Qe8+ $11) 36. e7 {[%emt 0:00:51]} Qb8+ {[%emt 0:00:07]} (36... d1=R 37. e8=Q+ Kh7 38. Qfh8#) 37. Qe5 {[%emt 0:00:04]} Qe8 {[%emt 0:00:35]} ({Inferior is} 37... d1=Q 38. Qxb8+ Kg7 39. Qf8+ (39. e8=B gxh4 40. Bxb5 Bxb5 $11) (39. e8=Q Qh1+ 40. Kxh1 gxh4 41. Qg8+ Kf6 42. Qe5#) 39... Kf6 40. e8=N+ Ke6 41. Qd6#) (37... Qxe5+ 38. dxe5 d1=Q (38... d1=B $2 39. e8=Q+ Kg7 40. e6 $18) 39. e8=Q+ Kg7 40. e6 fxe6 (40... gxh4 41. exf7 Qf1 42. Qg8+ Kf6 43. f8=Q+ Ke5 44. Qc5+ Kf6 45. Qd6+ Kf5 46. Qgg6#) (40... Qf1 41. Nf3 $11) 41. Qe7+ Kh8 (41... Kg8 42. Qxe6+ Kg7 43. Qd7+ Kf6 44. Qd6+ Kf7 45. Ng6 $14) 42. Qd8+ Kg7 43. Qe7+ (43. Nf3 Qe2 $11) 43... Kh8 (43... Kg8 44. Qxe6+ Kg7 45. Qe7+ Kg8 46. Qe8+ Kg7 47. Qd7+ Kf6 48. Qd6+ Kf7 49. Nf3 $14) 44. Qf8+ Kh7 45. Qe7+ Kh8 $11 (45... Kg8 46. Qxe6+ Kg7 47. Qe7+ Kg8 48. Qd8+ Kf7 49. Nf3 $16)) 38. Qd6 {[%emt 0:00:48]} f6 {[%emt 0:00:48]} (38... d1=B $2 {loses.} 39. Qd8 $18) 39. Qd5+ {[%emt 0:00:42]} Kg7 {[%emt 0:00:08]} 40. Qb3 {[%emt 0:00:00]} Be4 {[%emt 0:00:00]} ({Weaker is} 40... gxh4 41. Qxd3 Qxe7 42. Qxd2 $17) 0-1

[Event "Polish Ekstraliga 2024"]
[Site "Walbrzych"]
[Date "2024.10.07"]
[Round "1.18"]
[White "Narva, Mai"]
[Black "Bartel, Marta"]
[Result "1-0"]
[ECO "B32"]
[WhiteElo "2415"]
[BlackElo "2214"]
[Annotator "RC"]
[PlyCount "141"]
[EventDate "2024.10.05"]
[EventType "team-tourn"]
[EventCountry "POL"]
[SourceTitle "playchess.com"]
[Source "ChessBase"]
[SourceQuality "1"]
[WhiteTeam "Raciborz"]
[BlackTeam "Wisznia Mala"]
[TimeControl "40/5400+30:1800+30"]

1. e4 {[%emt 0:00:05]} c5 {[%emt 0:00:09]} 2. Nf3 {[%emt 0:00:13]} a6 {[%emt 0:00:12]} 3. c4 {[%emt 0:01:34]} Nc6 {[%emt 0:00:10]} 4. d4 {[%emt 0:01:01]} cxd4 {[%emt 0:00:06]} 5. Nxd4 {[%emt 0:00:11]} e5 {[%emt 0:00:18]} 6. Nf5 {[%emt 0:08:18]} d5 {[%emt 0:00:19]} 7. cxd5 {[%emt 0:04:57]} Bxf5 {[%emt 0:00:14]} 8. exf5 {[%emt 0:01:35]} Nd4 {[%emt 0:00:08]} 9. Nc3 {[%emt 0:01:54]} Nf6 {[%emt 0:00:07]} 10. Bg5 {[%emt 0:04:11]} Be7 {[%emt 0:00:42]} 11. Bxf6 {[%emt 0:05:02]} Bxf6 {[%emt 0:00:08]} 12. Bd3 {[%emt 0:00:35]} g6 {[%emt 0:01:01]} 13. fxg6 {[%emt 0:03:09]} hxg6 {[%emt 0:00:09]} 14. O-O {[%emt 0:07:13]} Kf8 {[%emt 0:03:34]} 15. a4 {[%emt 0:10:29]} Bg7 {[%emt 0:11:01]} 16. a5 {[%emt 0:13:11]} f5 {[%emt 0:28:21]} 17. Ra4 {[%emt 0:05:58]} Qd6 {[%emt 0:04:12]} 18. h3 {[%emt 0:02:45]} Rd8 {[%emt 0:02:32]} 19. Re1 {[%emt 0:04:53]} Rh4 {[%emt 0:06:52]} 20. Bf1 {[%emt 0:04:52]} Qc5 {[%emt 0:07:21]} 21. Qd3 {[%emt 0:05:57]} Rh6 {[%emt 0:13:10]} 22. Qg3 {[%emt 0:03:08]} Qd6 {[%emt 0:05:46]} 23. Rc4 {[%emt 0:02:12]} Bf6 {[%emt 0:10:50]} 24. Qe3 {[%emt 0:06:31]} Kg7 {[%emt 0:01:27]} 25. Na4 {[%emt 0:00:35]} Rh7 {[%emt 0:03:11]} 26. Nb6 {[%emt 0:00:37]} Kh8 {[%emt 0:00:48]} 27. Rec1 {[%emt 0:00:58]} Rh5 {[%emt 0:00:29]} 28. Qa3 {[%emt 0:01:45]} Qxa3 {[%emt 0:00:34]} 29. bxa3 {[%emt 0:00:05]} Nb3 {[%emt 0:00:32]} 30. Rd1 {[%emt 0:00:49]} Rh4 {[%emt 0:00:31]} 31. Rc7 {[%emt 0:00:34]} Nxa5 {[%emt 0:00:28]} 32. d6 {[%emt 0:00:37]} Rd4 {[%emt 0:00:32]} 33. Rxd4 {[%emt 0:00:19]} exd4 {[%emt 0:00:00]} 34. d7 {[%emt 0:00:41]} Kg7 {[%emt 0:00:31]} 35. Bd3 {[%emt 0:00:28]} Kf8 {[%emt 0:00:45]} 36. f4 {[%emt 0:00:35]} Be7 {[%emt 0:00:42]} 37. Rc8 {[%emt 0:00:26]} Kg7 {[%emt 0:00:36]} 38. g4 {[%emt 0:00:25]} fxg4 {[%emt 0:00:03]} 39. hxg4 {[%emt 0:00:04]} Nb3 {[%emt 0:00:37]} 40. Kf1 {[%emt 0:00:00]} Nc5 {[%emt 0:00:00]} 41. Ke2 {[%emt 0:04:20]} Ne6 {[%emt 0:08:49]} 42. f5 {[%emt 0:04:00]} Nf4+ {[%emt 0:01:55]} 43. Kd2 {[%emt 0:00:13]} Bg5 {[%emt 0:03:53]} 44. Kc2 {[%emt 0:00:48]} Ng2 {[%emt 0:03:03]} 45. Be4 {[%emt 0:01:39]} Ne3+ {[%emt 0:00:40]} 46. Kd3 {[%emt 0:01:50]} Nxg4 {[%emt 0:04:07]} 47. fxg6 {[%emt 0:01:02]} Bf6 {[%emt 0:03:17]} 48. Bxb7 {[%emt 0:10:57]} Ne5+ {[%emt 0:04:31]} 49. Kd2 {[%emt 0:01:29]} Kxg6 {[%emt 0:01:16]} 50. Bxa6 {[%emt 0:00:43]} Bg5+ {[%emt 0:00:54]} 51. Kd1 {[%emt 0:01:07]} d3 {[%emt 0:01:59]} 52. a4 {[%emt 0:00:38]} d2 {[%emt 0:00:34]} 53. Be2 {[%emt 0:03:21]} Kf7 {[%emt 0:01:25]} 54. a5 {[%emt 0:01:45]} Nxd7 {[%emt 0:00:42]} 55. Rc7 {[%emt 0:00:28]} Ke6 {[%emt 0:01:08]} 56. Rxd7 {[%emt 0:01:26]} Rxd7 {[%emt 0:00:36]} 57. Bg4+ {[%emt 0:00:07]} Kd6 {[%emt 0:00:07]} 58. Nxd7 {[%emt 0:00:36]} Kc6 {[%emt 0:00:43]} 59. a6 {[%emt 0:00:19]} Be3 {[%emt 0:00:18]} 60. Ke2 {[%emt 0:01:19]} d1=Q+ {[%emt 0:00:46]} 61. Kxd1 {[%emt 0:00:05]} Kb5 {[%emt 0:00:05]} 62. Be2+ {[%emt 0:00:15]} Kc6 {[%emt 0:00:05]} 63. Ne5+ {[%emt 0:00:22]} Kc7 {[%emt 0:00:15]} 64. Kc2 {[%emt 0:00:11]} Bd4 {[%emt 0:00:31]} 65. Nc4 {[%emt 0:00:35]} Bg1 {[%emt 0:00:17]} 66. Kb3 {[%emt 0:00:14]} Kb8 {[%emt 0:00:11]} 67. Ka4 {[%emt 0:00:14]} Ka7 {[%emt 0:00:06]} 68. Kb5 {[%emt 0:00:09]} Bh2 {[%emt 0:00:18]} 69. Na5 {[%emt 0:00:23]} Bg1 {[%emt 0:00:18]} 70. Nc6+ {[%emt 0:00:13]} Ka8 {[%emt 0:00:06]} 71. Bg4 {[%emt 0:00:31]} 1-0

[Event "Polish Ekstraliga 2024"]
[Site "Walbrzych"]
[Date "2024.10.07"]
[Round "1.19"]
[White "Janik, Igor"]
[Black "Mendonca, Leon Luke"]
[Result "1/2-1/2"]
[ECO "A18"]
[WhiteElo "2501"]
[BlackElo "2622"]
[Annotator "TA"]
[PlyCount "81"]
[EventDate "2024.10.05"]
[EventType "team-tourn"]
[EventCountry "POL"]
[SourceTitle "playchess.com"]
[Source "ChessBase"]
[SourceQuality "1"]
[WhiteTeam "Gorzow Wlkp"]
[BlackTeam "Bydgoszcz"]
[TimeControl "40/5400+30:1800+30"]

{[%evp 10,81,29,25,20,7,10,10,28,14,29,14,23,8,23,21,22,39,35,9,9,8,13,10,20,19,13,20,16,9,8,21,11,19,6,0,47,37,51,51,51,51,51,51,51,51,51,51,51,51,51,51,51,51,51,51,51,51,51,51,51,51,51,51,51,51,51,51,51,11,11,0,0,0]} 1. c4 {[%emt 0:00:02]} Nf6 {[%emt 0:00:53]} 2. Nc3 {[%emt 0:00:08]} e6 {[%emt 0:01:25]} 3. e4 {[%emt 0:00:07]} d5 {[%emt 0:00:05]} 4. cxd5 {[%emt 0:00:08]} exd5 {[%emt 0:00:05]} 5. e5 {[%emt 0:00:03]} Ne4 {[%emt 0:00:08]} 6. Nf3 {[%emt 0:00:04]} Bf5 {[%emt 0:00:34]} 7. a3 {[%emt 0:00:07]} Be7 {[%emt 0:18:33]} 8. d4 {[%emt 0:00:06]} O-O {[%emt 0:02:19]} 9. Bd3 {[%emt 0:00:06]} c5 {[%emt 0:02:06]} 10. O-O {[%emt 0:01:00]} Nc6 {[%emt 0:04:53]} 11. dxc5 {[%emt 0:00:29]} Bxc5 {[%emt 0:05:04][%cal Be7c5,Bc5d4,Bd4b2][%mdl 32]} 12. Qc2 {[%emt 0:00:14][%cal Rc3e4]} Nd4 {[%emt 0:00:38]} 13. Nxd4 {[%emt 0:00:08]} Bxd4 {[%emt 0:00:04]} 14. Nxe4 {[%emt 0:00:12]} dxe4 {[%emt 0:00:06]} 15. Bxe4 {[%emt 0:00:08]} Rc8 {[%emt 0:00:10]} 16. Qe2 {[%emt 0:00:09]} Qd7 {[%emt 0:07:45]} 17. Bf4 {[%emt 0:06:59] Rad1 is the strong threat.} Bxe4 {[%emt 0:03:37]} 18. Qxe4 {[%emt 0:00:09] [#] Rad1 would now be deadly.} Bxb2 {[%emt 0:01:08]} 19. Rab1 {[%emt 0:03:05][%cal Ba1b1,Bb1b7,Bb7d7][%mdl 32]} Bxa3 {[%emt 0:06:17]} 20. Rxb7 {[%emt 0:00:26]} Rc4 {[%emt 0:00:17]} 21. Rxd7 {[%emt 0:08:24]} (21. Qf3 {seems wilder.} Qf5 22. Qxa3 Qxf4 23. e6) 21... Rxe4 {[%emt 0:00:15]} 22. Rxa7 {[%emt 0:00:07]} Rxf4 {[%emt 0:04:02]} (22... Bc5 $11 23. Rc7 Bb6) 23. Rxa3 $11 {[%emt 0:00:10][%mdl 4096] Endgame. KRR-KRR} Re4 {[%emt 0:01:52]} 24. f4 {[%emt 0:00:26]} f6 {[%emt 0:00:14]} 25. exf6 {[%emt 0:01:22]} Rxf6 {[%emt 0:00:05]} 26. g3 {[%emt 0:00:06]} Re2 {[%emt 0:03:12][%cal Og7g5]} 27. Ra8+ {[%emt 0:02:32]} Rf8 {[%emt 0:00:42]} 28. Rxf8+ {[%emt 0:00:58]} Kxf8 $14 {[%emt 0:00:02] KR-KR} 29. Rf2 {[%emt 0:00:05]} Re3 {[%emt 0:00:22]} 30. Kg2 {[%emt 0:00:04]} Kf7 {[%emt 0:00:06]} 31. Ra2 {[%emt 0:00:04]} h6 {[%emt 0:03:19]} 32. Kh3 {[%emt 0:00:10]} Rb3 {[%emt 0:01:26][%cal Be3b3,Bb3b5,Bb5a5,Ba5a2][%mdl 32]} 33. Kg4 {[%emt 0:01:19]} Rb5 {[%emt 0:00:04]} 34. Ra7+ {[%emt 0:00:05]} Kf6 {[%emt 0:00:30]} 35. Ra6+ {[%emt 0:00:04]} Kf7 {[%emt 0:00:04]} 36. Rd6 {[%emt 0:01:01]} Ra5 {[%emt 0:00:20]} 37. Kh4 {[%emt 0:00:14]} Ra2 {[%emt 0:00:37]} 38. h3 {[%emt 0:00:05]} Ra5 {[%emt 0:00:19]} 39. g4 {[%emt 0:00:45]} Ra4 {[%emt 0:00:41]} 40. Kg3 {[%emt 0:00:00]} Ra3+ {[%emt 0:00:00]} 41. Kg2 {[%emt 0:03:09] Weighted Error Value: White=0.04 (flawless) /Black=0.03 (flawless) .  Mistake:       	---       	Black=1      Inaccurate:     	White=2     	---        OK:         	White=18    	Black=19     Best:        	White=2     	Black=3} 1/2-1/2

[Event "Polish Ekstraliga 2024"]
[Site "Walbrzych"]
[Date "2024.10.07"]
[Round "1.20"]
[White "Wojtaszek, Radoslaw"]
[Black "Krasenkow, Michal"]
[Result "1/2-1/2"]
[ECO "A41"]
[WhiteElo "2673"]
[BlackElo "2490"]
[Annotator "RC"]
[PlyCount "96"]
[EventDate "2024.10.05"]
[EventType "team-tourn"]
[EventCountry "POL"]
[SourceTitle "playchess.com"]
[Source "ChessBase"]
[SourceQuality "1"]
[WhiteTeam "Bydgoszcz"]
[BlackTeam "Gorzow Wlkp"]
[TimeControl "40/5400+30:1800+30"]

1. d4 {[%emt 0:00:03]} d6 {[%emt 0:00:06]} 2. Nf3 {[%emt 0:00:09]} Bg4 {[%emt 0:00:06]} 3. c4 {[%emt 0:00:16]} Nd7 {[%emt 0:00:05]} 4. Nc3 {[%emt 0:00:25]} e5 {[%emt 0:00:05]} 5. g3 {[%emt 0:00:12]} Ngf6 {[%emt 0:00:07]} 6. Bg2 {[%emt 0:00:17]} c6 {[%emt 0:00:06]} 7. h3 {[%emt 0:00:22]} Bxf3 {[%emt 0:00:06]} 8. Bxf3 {[%emt 0:00:06]} Be7 {[%emt 0:00:05]} 9. d5 {[%emt 0:00:20]} c5 {[%emt 0:01:24]} 10. h4 {[%emt 0:02:05]} O-O {[%emt 0:01:26]} 11. g4 {[%emt 0:05:46]} Ne8 {[%emt 0:07:07]} 12. g5 {[%emt 0:01:50]} a6 {[%emt 0:05:55]} 13. a4 {[%emt 0:04:25]} Nc7 {[%emt 0:04:50]} 14. a5 {[%emt 0:01:22]} Rb8 {[%emt 0:14:03]} 15. Qd3 {[%emt 0:12:06]} f5 {[%emt 0:01:41]} 16. gxf6 {[%emt 0:00:06]} Nxf6 {[%emt 0:00:15]} 17. Ne4 {[%emt 0:03:40]} b5 {[%emt 0:01:53]} 18. axb6 {[%emt 0:01:38]} Rxb6 {[%emt 0:00:06]} 19. Nxf6+ {[%emt 0:01:14]} Rxf6 {[%emt 0:00:59]} 20. Be4 {[%emt 0:01:22]} h6 {[%emt 0:00:54]} 21. Qg3 {[%emt 0:02:36]} Qd7 {[%emt 0:23:25]} 22. Bc2 {[%emt 0:01:18]} Bd8 {[%emt 0:06:31]} 23. Rg1 {[%emt 0:02:44]} Kf8 {[%emt 0:02:23]} 24. Ra3 {[%emt 0:02:47]} Rb4 {[%emt 0:01:56]} 25. Qd3 {[%emt 0:05:08]} Qf7 {[%emt 0:01:07]} 26. Rg2 {[%emt 0:01:03]} Be7 {[%emt 0:11:26]} 27. Qe4 {[%emt 0:03:13]} Ke8 {[%emt 0:01:05]} 28. Rag3 {[%emt 0:10:25]} Bf8 {[%emt 0:00:37]} 29. b3 {[%emt 0:00:45]} Kd8 {[%emt 0:02:18]} 30. Qh7 {[%emt 0:02:16]} Ne8 {[%emt 0:03:38]} 31. Bg6 {[%emt 0:07:58]} Qe7 {[%emt 0:01:10]} 32. Bd2 {[%emt 0:00:32]} Rb7 {[%emt 0:00:44]} 33. Qg8 {[%emt 0:01:06]} Kc8 {[%emt 0:00:44]} 34. Kd1 {[%emt 0:04:35]} Kb8 {[%emt 0:01:27]} 35. Kc2 {[%emt 0:00:12]} Qd7 {[%emt 0:03:36]} 36. Bxe8 {[%emt 0:07:10]} Qxe8 {[%emt 0:00:02]} 37. Rxg7 {[%emt 0:00:07]} Rxg7 {[%emt 0:00:15]} 38. Rxg7 {[%emt 0:00:02]} Rxf2 {[%emt 0:00:08]} 39. Rg6 {[%emt 0:01:00]} Qd8 {[%emt 0:02:46]} 40. Re6 {[%emt 0:00:00]} Kb7 {[%emt 0:00:00]} 41. Be3 {[%emt 0:13:56]} Rxe2+ {[%emt 0:04:26]} 42. Kd3 {[%emt 0:00:07]} Rxe3+ {[%emt 0:00:06]} 43. Kxe3 {[%emt 0:00:07]} Qxh4 {[%emt 0:00:04]} 44. Qf7+ {[%emt 0:11:27]} Kb6 {[%emt 0:00:07]} 45. Rf6 {[%emt 0:00:41]} h5 {[%emt 0:13:54]} 46. Qxf8 {[%emt 0:03:25]} Qe1+ {[%emt 0:00:06]} 47. Kf3 {[%emt 0:00:16]} Qf1+ {[%emt 0:00:06]} 48. Ke3 {[%emt 0:00:24]} Qe1+ {[%emt 0:00:06]} 1/2-1/2